bitfinex-derivatives/quotes_ETHF0:USTF0_20210107
["timestamp","ask_amount","ask_price","bid_price","bid_amount"]
[1610007522558,2.0479,1158.2,1153.6,2.1617]
[1610007523058,2.0479,1158.2,1158.1,4.00959]
[1610007523258,2.8051,1158.5,1158.1,4.00959]
[1610007523458,93.88071,1156.4,1153.7,30.0]
[1610007523660,67.98461,1156.4,1153.7,30.0]
[1610007523959,5.49761,1156.4,1153.7,30.0]
[1610007524160,2.9257,1158.2,1153.7,30.0]
[1610007524759,2.9257,1158.2,1155.1,52.2536]
[1610007524959,2.9257,1158.2,1155.1,54.409]
[1610007525161,2.9257,1158.2,1158.1,4.00959]
[1610007525362,2.9257,1158.2,1155.1,2.1554]
[1610007525562,2.9257,1158.2,1157.4,2.8628]
[1610007526762,2.8043,1158.9,1157.4,2.8628]
[1610007527063,3.0848,1159.2,1158.8,4.00959]
[1610007527262,1.54109747,1162.4,1158.8,3.00959]
[1610007529065,4.00959,1161.5,1160.7,4.00959]
[1610007529364,6.38759,1161.5,1158.3,1.9375]
[1610007530565,6.38759,1161.5,1158.4,56.846]
[1610007531168,4.00959,1160.6,1160.1,4.00959]
[1610007531466,6.33089,1160.6,1158.4,56.846]
[1610007532468,1.7231,1163.5,1158.4,56.846]
[1610007532668,70.7683,1161.9,1158.0,60.149]
[1610007532967,73.3814,1161.9,1158.0,60.149]
[1610007533168,4.00959,1160.4,1160.1,4.00959]
[1610007533369,7.16959,1160.4,1158.0,57.3954]
[1610007533569,3.16,1160.4,1158.0,57.3954]
[1610007535272,3.16,1160.4,1160.3,4.00959]
[1610007535470,3.16,1160.4,1158.2,2.4283]
[1610007537481,3.16,1160.4,1160.3,4.00959]
[1610007538078,2.6131,1161.9,1160.3,4.00959]
[1610007538278,6.78511298,1163.5,1160.3,4.00959]
[1610007538978,6.80378278,1164.1,1160.3,4.00959]
[1610007539383,6.81611183,1164.5,1163.0,4.00959]
[1610007539578,6.81611183,1164.5,1160.9,2.5308]
[1610007539879,2.5942,1164.5,1160.9,2.5308]
[1610007540385,3.16126556,1164.4,1160.9,2.5308]
[1610007540678,3.16126556,1164.4,1160.3,1.936]
[1610007540880,3.16126556,1164.4,1159.9,3.8424]
[1610007541078,3.16126556,1164.4,1157.5,7.377]
[1610007541279,3.16126556,1164.4,1161.7,4.00959]
[1610007541480,9.9784725,1164.4,1159.6,4.2265]
[1610007541680,6.82278367,1164.3,1159.7,6.1422]
[1610007542180,6.8158788,1164.1,1157.5,7.377]
[1610007542381,9.3658788,1164.1,1157.6,3.8726]
[1610007542584,9.3658788,1164.1,1157.7,6.1626]
[1610007542882,0.77812643,1163.4,1157.7,6.1626]
[1610007543082,3.58702643,1163.4,1157.7,6.1626]
[1610007543282,4.00959,1161.3,1160.8,4.00959]
[1610007543482,6.57149,1161.3,1159.9,48.7786]
[1610007543882,2.5619,1161.3,1159.9,48.7786]
[1610007545384,6.57149,1161.3,1159.9,48.7786]
[1610007546189,2.5619,1161.3,1159.9,48.7786]
[1610007547385,6.57149,1161.3,1161.0,4.00959]
[1610007547585,2.5619,1161.3,1161.0,4.00959]
[1610007548087,58.83583632,1163.3,1161.0,4.00959]
[1610007548786,58.06,1163.3,1161.0,4.00959]
[1610007549489,4.00959,1162.8,1162.4,4.00959]
[1610007549687,6.38529,1162.8,1160.9,49.1634]
[1610007551388,6.38529,1162.8,1162.6,4.00959]
[1610007551788,6.38529,1162.8,1162.0,2.1045]
[1610007552589,6.38529,1162.8,1160.9,49.1634]
[1610007552888,6.38529,1162.8,1160.8,2.6656]
[1610007553287,6.38529,1162.8,1160.3,1.9534]
[1610007553489,4.00959,1161.9,1161.8,4.00959]
[1610007553689,6.60189,1161.9,1157.9,3.2102]
[1610007553989,6.60189,1161.9,1157.9,3.5999]
[1610007554389,2.5923,1161.9,1157.9,33.5999]
[1610007554789,2.7901,1162.5,1157.9,33.5999]
[1610007554990,2.7901,1162.5,1157.9,36.6707]
[1610007555493,2.7901,1162.5,1162.4,4.00959]
[1610007555791,2.3757,1162.8,1162.4,4.00959]
[1610007555993,2.8089,1163.4,1162.4,4.00959]
[1610007556191,2.55,1164.1,1162.4,4.00959]
[1610007556492,0.77729167,1164.4,1162.4,4.00959]
[1610007556692,0.77729167,1164.4,1162.4,6.12619]
[1610007556893,60.5551,1163.7,1162.4,6.12619]
[1610007557093,62.6815,1163.7,1162.4,6.12619]
[1610007557494,62.6815,1163.7,1163.6,4.00959]
[1610007558694,60.5551,1163.7,1163.6,4.00959]
[1610007560495,60.5551,1163.7,1163.5,3.1359]
[1610007561603,60.5551,1163.7,1163.6,4.00959]
[1610007562003,4.00959,1164.5,1163.6,4.00959]
[1610007562406,2.4217,1164.7,1163.6,4.00959]
[1610007562611,0.77919107,1165.7,1163.6,4.00959]
[1610007563511,4.00959,1164.3,1164.2,4.00959]
[1610007563704,2.2824,1164.9,1164.2,4.00959]
[1610007564602,2.2824,1164.9,1164.0,1.9703]
[1610007565006,2.2824,1164.9,1163.5,3.1359]
[1610007565210,2.2824,1164.9,1163.1,1.9482]
[1610007565408,2.2824,1164.9,1162.4,2.1166]
[1610007565606,2.2824,1164.9,1163.6,4.00959]
[1610007565805,2.2824,1164.9,1163.6,7.06329]
[1610007567506,2.2824,1164.9,1163.5,4.00959]
[1610007567709,2.2824,1164.9,1163.6,2.141]
[1610007568608,1.95441859,1165.8,1163.6,2.141]
[1610007568912,1.95615822,1166.0,1163.6,2.141]
[1610007569213,1.95672399,1166.2,1163.6,2.141]
[1610007569417,3.52370893,1166.5,1163.6,2.141]
[1610007569615,4.00959,1165.5,1165.3,4.00959]
[1610007569910,2.1125,1166.4,1165.3,4.00959]
[1610007570111,2.1125,1166.4,1165.3,7.05579]
[1610007570514,2.1125,1166.4,1165.3,3.0462]
[1610007570912,3.53266866,1167.0,1165.3,3.0462]
[1610007571211,1.9625937,1167.0,1165.3,3.0462]
[1610007571713,3.53553172,1167.3,1166.8,4.00959]
[1610007572013,3.53553172,1167.3,1166.1,2.6837]
[1610007572212,6.50903172,1167.3,1166.1,2.6837]
[1610007573516,6.50903172,1167.3,1166.2,4.00959]
[1610007573813,6.50903172,1167.3,1166.1,2.6837]
[1610007574014,6.50903172,1167.3,1165.8,2.433]
[1610007574815,36.50903172,1167.3,1164.6,53.7706]
[1610007575014,6.50903172,1167.3,1164.6,53.7706]
[1610007575515,4.00959,1165.7,1165.3,4.00959]
[1610007575716,6.14979,1165.7,1165.3,4.00959]
[1610007576016,6.14979,1165.7,1164.6,53.7706]
[1610007577617,4.00959,1165.2,1164.6,53.7706]
[1610007578817,2.1402,1165.7,1164.6,53.7706]
[1610007579018,2.1402,1165.7,1164.6,56.6132]
[1610007579518,4.00959,1166.0,1165.4,4.00959]
[1610007579719,4.00959,1166.0,1165.4,6.09429]
[1610007580219,3.53976522,1167.0,1165.4,6.09429]
[1610007581524,4.00959,1166.8,1166.1,4.00959]
[1610007582323,2.9735,1167.3,1166.1,4.00959]
[1610007582523,3.55142983,1167.8,1166.1,6.49149]
[1610007583526,4.00959,1167.0,1166.3,4.00959]
[1610007584326,4.00959,1167.0,1166.1,2.4819]
[1610007585826,5.74432983,1167.8,1166.1,2.4819]
[1610007586733,2.1929,1167.8,1166.1,2.4819]
[1610007587735,6.20249,1167.8,1166.1,2.1133]
[1610007589537,2.1929,1167.8,1167.3,4.00959]
[1610007589833,3.55790394,1168.5,1166.7,2.0361]
[1610007590434,3.55669654,1168.4,1166.7,2.0361]
[1610007590638,6.47779654,1168.4,1166.7,2.0361]
[1610007590934,3.55050427,1168.0,1165.7,2.9763]
[1610007591134,6.34580427,1168.0,1165.7,2.9763]
[1610007591338,6.34580427,1168.0,1160.6,13.72630125]
[1610007591535,4.00959,1165.8,1165.3,4.00959]
[1610007591735,4.00959,1165.8,1160.3,13.72630125]
[1610007592636,2.966,1166.4,1153.9,13.72630125]
[1610007592935,2.966,1166.4,1160.2,27.06300125]
[1610007593535,2.966,1166.4,1166.3,4.00959]
[1610007594036,2.7901,1166.7,1165.9,2.6471]
[1610007594435,4.00959,1166.8,1165.9,2.6471]
[1610007595537,4.00959,1166.1,1166.0,4.00959]
[1610007595836,2.5293,1166.5,1165.4,2.3492]
[1610007597239,2.5293,1166.5,1165.1,2.584]
[1610007597638,4.00959,1165.4,1165.1,2.584]
[1610007598138,4.00959,1165.4,1160.2,13.3367]
[1610007599752,2.6376,1165.5,1160.9,144.9176]
[1610007600044,2.6376,1165.5,1160.9,147.9267]
[1610007601643,2.6376,1165.5,1165.4,4.00959]
[1610007602957,6.2418,1166.4,1165.4,4.00959]
[1610007603246,2.5293,1166.5,1165.4,4.00959]
[1610007603450,2.55200344,1167.0,1165.1,3.0998]
[1610007603646,7.37216365,1167.1,1165.1,3.0998]
[1610007603647,4.00959,1166.7,1166.2,4.00959]
[1610007603846,3.0475,1166.7,1166.2,4.00959]
[1610007604948,2.3101,1167.1,1166.2,4.00959]
[1610007605749,2.3101,1167.1,1167.0,4.00959]
[1610007605950,2.3101,1167.1,1166.4,3.179]
[1610007607550,4.00959,1167.4,1166.4,3.179]
[1610007607750,4.00959,1166.9,1166.4,3.179]
[1610007609357,2.4791,1167.2,1166.4,3.179]
[1610007609560,2.3551,1167.5,1166.4,3.179]
[1610007609758,4.00959,1167.2,1166.4,7.18859]
[1610007610157,2.3551,1167.5,1166.4,7.18859]
[1610007610658,2.7953,1168.0,1166.4,7.18859]
[1610007610857,12.73352719,1168.4,1166.4,7.18859]
[1610007611758,4.00959,1168.1,1167.2,4.00959]
[1610007612761,12.73352719,1168.4,1167.2,4.00959]
[1610007612961,12.73352719,1168.4,1167.2,6.19429]
[1610007613861,12.73352719,1168.4,1167.2,2.1847]
[1610007614162,8.5807,1168.4,1167.2,2.1847]
[1610007615363,8.5807,1168.4,1165.6,53.66890125]
[1610007615562,8.5807,1168.4,1167.2,3.037]
[1610007615862,8.5807,1168.4,1168.0,4.00959]
[1610007617376,2.9211,1168.4,1168.0,4.00959]
[1610007617561,4.15822781,1169.6,1168.0,4.00959]
[1610007617762,4.15822781,1169.6,1167.8,2.4039]
[1610007617967,2.1539,1169.6,1167.8,2.4039]
[1610007619665,4.00959,1169.2,1168.9,4.00959]
[1610007620066,6.0041,1169.7,1168.9,4.00959]
[1610007620265,6.0041,1169.7,1168.9,7.20079]
[1610007620665,2.5492,1169.9,1168.9,7.20079]
[1610007621769,4.00959,1169.1,1168.9,7.20079]
[1610007622170,2.2528,1169.4,1168.9,7.20079]
[1610007623172,2.5492,1169.9,1168.9,7.20079]
[1610007623672,4.00959,1169.8,1169.6,4.00959]
[1610007625671,4.00959,1170.0,1169.6,4.00959]
[1610007627372,4.00959,1170.0,1169.3,2.0405]
[1610007627671,4.00959,1170.0,1169.8,4.00959]
[1610007627872,2.6804,1170.2,1169.8,4.00959]
[1610007628074,2.6804,1170.2,1169.6,3.1845]
[1610007628372,3.1011,1170.5,1169.6,3.1845]
[1610007629572,6.17223734,1171.0,1169.6,3.1845]
[1610007629772,4.00959,1170.2,1169.9,4.00959]
[1610007631476,4.00959,1170.2,1168.9,60.4619]
[1610007631776,4.00959,1170.2,1170.1,4.00959]
[1610007632776,4.00959,1170.2,1168.9,60.4619]
[1610007633478,3.0102,1170.4,1168.9,60.4619]
[1610007633677,3.0102,1170.4,1170.3,4.00959]
[1610007633678,7.01979,1170.4,1170.3,4.00959]
[1610007633976,7.01979,1170.4,1168.9,62.7256]
[1610007635679,4.00959,1169.9,1168.9,62.7256]
[1610007637280,1.9581,1170.0,1168.9,62.7256]
[1610007637680,7.01979,1170.4,1169.9,4.00959]
[1610007639580,7.01979,1170.4,1169.9,3.1144]
[1610007639782,7.01979,1170.4,1170.3,4.00959]
[1610007639981,7.01979,1170.4,1169.9,3.1144]
[1610007640581,7.01979,1170.4,1169.5,54.7126]
[1610007641483,3.0102,1170.4,1169.5,54.7126]
[1610007641681,2.8495,1170.7,1169.5,54.7126]
[1610007642285,2.5495,1170.7,1169.5,54.7126]
[1610007643786,4.00959,1170.3,1170.0,4.00959]
[1610007646291,2.5495,1170.7,1170.0,4.00959]
[1610007646588,30.0,1171.6,1170.0,6.37269]
[1610007647791,4.00959,1170.6,1170.0,2.3631]
[1610007648493,34.00959,1170.6,1169.5,54.7126]
[1610007649794,4.00959,1169.6,1169.5,51.5234]
[1610007650596,34.00959,1169.6,1169.5,51.5234]
[1610007651297,4.00959,1169.6,1169.5,51.5234]
[1610007651498,4.00959,1169.6,1166.0,3.674]
[1610007651797,32.5235,1169.8,1166.0,3.674]
[1610007651998,32.5235,1169.8,1166.0,6.2164]
[1610007652699,2.5235,1169.8,1166.0,6.2164]
[1610007652903,32.5235,1169.8,1166.0,6.2164]
[1610007653401,2.5235,1169.8,1166.0,6.2164]
[1610007653801,4.00959,1169.3,1166.0,6.2164]
[1610007654001,6.95499,1169.3,1166.0,6.2164]
[1610007655804,4.00959,1168.8,1166.0,6.2164]
[1610007656106,4.00959,1168.8,1166.5,61.1983]
[1610007656405,4.00959,1168.8,1166.5,64.2638]
[1610007657807,4.00959,1168.4,1168.3,4.00959]
[1610007658207,2.9454,1169.3,1168.3,4.00959]
[1610007658407,2.9454,1169.3,1168.3,7.12839]
[1610007659108,32.5235,1169.8,1168.3,7.12839]
[1610007659608,2.5235,1169.8,1168.3,7.12839]
[1610007659809,4.00959,1169.1,1168.3,7.12839]
[1610007660010,2.1231,1169.3,1168.3,7.12839]
[1610007661812,4.00959,1168.4,1168.3,7.12839]
[1610007662213,4.00959,1168.4,1168.3,3.1188]
[1610007662516,2.1231,1169.3,1168.3,3.1188]
[1610007663218,32.1231,1169.3,1168.3,3.1188]
[1610007663415,2.1231,1169.3,1166.5,46.04790125]
[1610007663714,2.1231,1169.3,1168.3,3.175]
[1610007663913,4.00959,1168.6,1168.5,4.00959]
[1610007664116,4.00959,1168.6,1168.3,3.175]
[1610007665414,30.0,1168.5,1167.5,54.6078]
[1610007665616,30.0,1168.5,1166.5,6.7395]
[1610007665814,4.00959,1167.1,1166.8,4.00959]
[1610007666616,4.00959,1167.1,1166.5,3.0655]
[1610007666816,4.00959,1167.1,1165.6,11.051]
[1610007667017,4.00959,1167.1,1165.6,7.377]
[1610007667924,4.00959,1166.5,1166.3,4.00959]
[1610007668127,2.2024,1167.5,1166.3,4.00959]
[1610007668425,30.0,1167.4,1166.3,2.5539]
[1610007669830,4.00959,1166.4,1166.3,6.56349]
[1610007670026,4.00959,1166.4,1166.3,2.5539]
[1610007671632,2.3289,1167.2,1166.3,2.5539]
[1610007671829,6.33849,1167.2,1167.1,4.00959]
[1610007672229,2.3289,1167.2,1167.1,4.00959]
[1610007672429,59.1962,1167.7,1167.1,4.00959]
[1610007673931,59.1962,1167.7,1167.6,4.00959]
[1610007674230,59.1962,1167.7,1167.6,6.60499]
[1610007675048,67.4978,1168.7,1167.6,6.60499]
[1610007675359,30.0,1168.6,1167.6,2.5954]
[1610007675552,30.0,1168.6,1166.5,51.2758]
[1610007675946,4.00959,1167.8,1166.5,51.2758]
[1610007676936,30.0,1167.7,1166.5,51.2758]
[1610007677937,30.0,1167.7,1167.4,4.00959]
[1610007678137,30.0,1167.7,1167.4,2.3191]
[1610007679138,30.0,1167.6,1167.4,2.3191]
[1610007679939,4.00959,1167.5,1166.5,55.28539]
[1610007680143,34.00959,1167.5,1166.5,55.28539]
[1610007680439,34.00959,1167.5,1166.5,51.2758]
[1610007680642,34.00959,1167.5,1165.3,50.7815]
[1610007681041,36.62209,1167.5,1165.3,50.7815]
[1610007682143,4.00959,1165.6,1165.3,50.7815]
[1610007682743,30.0,1166.8,1165.3,50.7815]
[1610007682943,30.0,1166.8,1165.3,53.4355]
[1610007684246,30.0,1166.8,1165.3,2.654]
[1610007685246,30.0,1166.7,1165.3,2.654]
[1610007686247,30.0,1166.6,1165.3,2.654]
[1610007686847,30.0,1167.1,1165.3,2.654]
[1610007687249,30.0,1167.4,1165.3,2.654]
[1610007687450,30.0,1167.4,1165.3,2.002]
[1610007688051,4.00959,1166.7,1165.8,4.00959]
[1610007688351,30.0,1166.6,1165.8,4.00959]
[1610007688552,30.0,1166.6,1165.3,2.002]
[1610007688752,30.0,1166.6,1160.9,3.0553]
[1610007688954,30.0,1166.6,1160.9,33.0553]
[1610007689153,4.00959,1166.7,1160.9,39.0783]
[1610007689354,4.00959,1166.7,1160.9,41.8107]
[1610007689552,4.00959,1166.7,1160.9,71.8107]
[1610007690051,4.00959,1166.5,1166.0,4.00959]
[1610007691253,4.00959,1166.5,1160.9,35.7877]
[1610007691753,4.00959,1166.5,1160.9,5.7877]
[1610007691953,4.00959,1166.1,1165.8,4.00959]
[1610007692153,4.00959,1166.1,1160.9,5.7877]
[1610007692353,4.00959,1166.1,1161.0,30.0]
[1610007692554,2.9681,1167.1,1161.0,30.0]
[1610007693155,2.9681,1167.1,1161.0,66.023]
[1610007693555,2.6125,1167.5,1161.0,66.023]
[1610007693755,88.8782,1167.7,1162.6,52.5954]
[1610007694057,4.00959,1166.6,1166.0,4.00959]
[1610007694656,4.00959,1166.6,1162.7,2.9088]
[1610007695957,4.00959,1166.6,1166.0,4.00959]
[1610007696159,4.00959,1166.6,1166.0,7.12369]
[1610007697158,5.73649,1166.6,1166.0,7.12369]
[1610007697359,35.73649,1166.6,1166.0,3.1141]
[1610007697558,34.00959,1166.6,1166.0,3.1141]
[1610007697961,4.00959,1166.1,1166.0,3.1141]
[1610007699364,4.00959,1166.1,1162.6,14.72839125]
[1610007699564,4.00959,1166.1,1165.0,58.6971]
[1610007699865,4.00959,1166.1,1165.0,61.2519]
[1610007700063,4.00959,1165.7,1165.4,4.00959]
[1610007700562,30.0,1167.1,1165.4,4.00959]
[1610007701064,30.0,1167.1,1165.4,6.03989]
[1610007701765,30.0,1167.1,1165.4,2.0303]
[1610007701966,4.00959,1165.5,1165.4,2.0303]
[1610007702665,4.00959,1165.5,1165.0,61.2519]
[1610007702865,34.00959,1165.5,1165.0,61.2519]
[1610007703267,34.00959,1165.5,1165.0,2.5548]
[1610007703866,4.00959,1165.5,1165.0,2.5548]
[1610007704066,4.00959,1165.2,1165.0,2.5548]
[1610007704367,30.0,1166.3,1165.0,2.5548]
[1610007704768,30.0,1166.3,1164.9,4.00959]
[1610007705067,30.0,1167.1,1164.9,4.00959]
[1610007705269,30.0,1167.1,1164.9,6.52979]
[1610007706068,4.00959,1166.2,1165.6,4.00959]
[1610007706272,3.00959,1166.2,1165.6,4.00959]
[1610007708171,30.0,1166.9,1165.8,4.00959]
[1610007708470,30.0,1166.8,1165.8,2.0285]
[1610007709372,30.0,1166.7,1165.8,2.0285]
[1610007709571,32.7349,1166.7,1165.8,2.0285]
[1610007710074,4.00959,1165.9,1165.8,2.0285]
[1610007710774,30.0,1166.6,1165.8,2.0285]
[1610007711377,30.0,1166.6,1165.4,4.00959]
[1610007711577,30.0,1166.5,1165.8,2.1225]
[1610007712179,4.00959,1166.1,1161.0,22.043]
[1610007712380,30.0,1166.0,1161.1,30.0]
[1610007712580,30.0,1166.0,1164.8,54.1381]
[1610007712781,30.0,1166.0,1164.8,56.7964]
[1610007713981,34.00959,1166.1,1164.8,56.7964]
[1610007714182,4.00959,1165.8,1164.8,56.7964]
[1610007715982,34.00959,1165.8,1164.8,56.7964]
[1610007716282,4.00959,1165.6,1165.4,4.00959]
[1610007718583,30.0,1166.9,1165.4,4.00959]
[1610007718882,30.0,1166.9,1165.4,6.34469]
[1610007720087,30.0,1166.9,1165.8,4.00959]
[1610007720285,30.0,1166.9,1165.8,7.12959]
[1610007720585,30.0,1166.9,1165.8,3.12]
[1610007722086,4.00959,1166.1,1165.9,4.00959]
[1610007723188,34.00959,1166.1,1165.9,4.00959]
[1610007723389,34.00959,1166.1,1165.0,50.9983]
[1610007724089,30.0,1166.1,1165.6,4.00959]
[1610007724287,30.0,1166.0,1165.6,6.17659]
[1610007724487,30.0,1166.0,1165.6,2.167]
[1610007725289,30.0,1165.9,1165.6,2.167]
[1610007726090,4.00959,1165.7,1165.6,2.167]
[1610007726290,34.00959,1165.7,1165.6,2.167]
[1610007727491,34.00959,1165.7,1165.0,50.9983]
[1610007728191,4.00959,1165.1,1165.0,50.9983]
[1610007728391,34.00959,1165.1,1165.0,50.9983]
[1610007728591,34.00959,1165.1,1164.8,2.6583]
[1610007728791,34.00959,1165.1,1162.7,3.674]
[1610007729293,34.00959,1165.1,1161.2,7.9066]
[1610007729592,36.22429,1165.1,1161.2,7.9066]
[1610007730205,32.2147,1165.1,1163.7,4.00959]
[1610007730399,32.2147,1165.1,1163.7,7.16519]
[1610007730594,32.2147,1165.1,1163.7,3.1556]
[1610007731293,101.766,1165.1,1163.7,3.1556]
[1610007732197,4.00959,1163.9,1163.7,3.1556]
[1610007732398,34.00959,1163.9,1163.7,3.1556]
[1610007733197,30.0,1163.9,1163.7,3.1556]
[1610007733396,30.0,1165.0,1163.7,3.1556]
[1610007734198,4.00959,1164.2,1164.1,4.00959]
[1610007735095,34.00959,1164.2,1163.7,3.1556]
[1610007735296,34.00959,1164.2,1162.7,64.8189]
[1610007735496,34.00959,1164.2,1161.2,7.9066]
[1610007735698,34.00959,1164.2,1161.2,5.8776]
[1610007736097,4.00959,1164.2,1161.2,3.674]
[1610007736299,4.00959,1164.2,1164.0,4.00959]
[1610007736497,30.0,1164.1,1164.0,2.6594]
[1610007736699,30.0,1164.1,1161.2,3.674]
[1610007737699,4.00959,1164.2,1161.2,3.674]
[1610007737899,4.00959,1164.2,1161.2,6.1997]
[1610007738198,4.00959,1164.0,1163.5,4.00959]
[1610007739199,30.0,1165.4,1163.5,4.00959]
[1610007739399,30.0,1165.4,1163.5,7.00709]
[1610007740000,30.0,1165.3,1163.5,7.00709]
[1610007740201,4.00959,1164.8,1164.5,4.00959]
[1610007740501,30.0,1165.3,1164.5,4.00959]
[1610007740704,30.0,1165.3,1164.5,6.86489]
[1610007740904,30.0,1165.8,1164.5,6.86489]
[1610007742202,4.00959,1165.4,1165.0,4.00959]
[1610007742402,30.0,1165.8,1165.0,4.00959]
[1610007742601,30.0,1165.8,1165.0,6.83649]
[1610007743205,30.0,1166.9,1165.0,6.83649]
[1610007744202,4.00959,1165.8,1165.7,4.00959]
[1610007744405,34.00959,1165.8,1165.7,4.00959]
[1610007744603,34.00959,1165.8,1165.0,2.8269]
[1610007746303,30.0,1165.8,1165.1,4.00959]
[1610007746507,30.0,1165.7,1165.0,2.8269]
[1610007747009,30.0,1165.7,1164.5,2.8553]
[1610007747205,30.0,1165.7,1163.5,2.9975]
[1610007747405,30.0,1165.6,1161.1,9.87490125]
[1610007747606,30.0,1165.6,1161.1,3.674]
[1610007747821,30.0,1165.6,1161.1,11.051]
[1610007748409,4.00959,1165.2,1165.1,4.00959]
[1610007748708,30.0,1165.5,1161.1,22.043]
[1610007748907,30.0,1165.5,1161.1,14.0771]
[1610007749508,30.0,1166.2,1161.1,14.0771]
[1610007749808,30.0,1166.2,1161.1,25.0691]
[1610007750309,4.00959,1165.5,1165.4,4.00959]
[1610007750509,34.00959,1165.5,1164.1,57.8346]
[1610007752411,30.0,1165.5,1164.1,57.8346]
[1610007752711,30.0,1165.4,1164.1,57.8346]
[1610007753611,30.0,1165.3,1164.1,57.8346]
[1610007754613,30.0,1165.2,1164.1,57.8346]
[1610007755613,30.0,1165.9,1164.1,57.8346]
[1610007755813,30.0,1165.9,1164.1,59.7704]
[1610007756413,30.0,1165.9,1164.1,63.77999]
[1610007757515,30.0,1165.9,1164.1,59.7704]
[1610007758316,4.00959,1164.2,1164.1,59.7704]
[1610007758615,34.00959,1164.2,1164.1,59.7704]
[1610007758816,30.0,1164.2,1164.1,59.7704]
[1610007759420,31.9973,1164.2,1163.7,60.5486]
[1610007759629,31.9973,1164.2,1162.0,147.0875]
[1610007759630,31.9973,1164.2,1161.1,3.0261]
[1610007759820,61.8044,1164.1,1162.3,61.9607]
[1610007760122,30.0,1164.0,1160.1,11.051]
[1610007760325,30.0,1164.0,1163.1,4.00959]
[1610007760621,30.0,1164.0,1163.1,6.57659]
[1610007760925,30.0,1163.9,1163.1,6.57659]
[1610007761132,30.0,1163.9,1163.1,2.567]
[1610007761923,30.0,1163.8,1163.1,2.567]
[1610007762325,4.00959,1163.2,1163.1,2.567]
[1610007762524,30.0,1163.2,1163.1,2.567]
[1610007763224,30.0,1163.2,1160.1,11.051]
[1610007763423,30.0,1164.3,1160.1,11.051]
[1610007763723,30.0,1164.3,1160.1,13.9452]
[1610007764424,4.00959,1163.7,1160.1,13.9452]
[1610007764724,30.0,1163.6,1160.1,13.9452]
[1610007765625,30.0,1163.5,1160.1,13.9452]
[1610007766425,30.0,1163.5,1163.1,4.00959]
[1610007766725,30.0,1163.4,1163.1,6.88589]
[1610007769232,30.0,1163.3,1163.1,6.88589]
[1610007769729,30.0,1163.3,1163.1,2.8763]
[1610007770131,30.0,1163.2,1163.1,2.8763]
[1610007770332,34.00959,1163.2,1163.1,2.8763]
[1610007770850,34.00959,1163.2,1160.6,70.3992]
[1610007771532,34.00959,1163.2,1161.5,53.9834]
[1610007771767,34.00959,1163.2,1161.5,56.7135]
[1610007772359,34.00959,1163.2,1161.5,2.7301]
[1610007772360,4.00959,1162.1,1161.5,2.7301]
[1610007772556,30.0,1162.0,1161.5,2.7301]
[1610007773933,30.0,1162.0,1160.2,48.941]
[1610007774335,4.00959,1160.7,1160.2,52.95059]
[1610007774534,30.0,1161.9,1160.2,52.95059]
[1610007775436,30.0,1161.8,1160.2,52.95059]
[1610007776436,30.0,1161.7,1161.0,4.00959]
[1610007777339,30.0,1162.0,1161.0,4.00959]
[1610007777540,30.0,1162.6,1161.0,7.19009]
[1610007778438,30.0,1162.5,1161.0,3.1805]
[1610007779437,30.0,1162.4,1161.0,3.1805]
[1610007780341,4.00959,1161.8,1161.0,7.19009]
[1610007780543,30.0,1161.7,1161.0,7.19009]
[1610007781542,30.0,1161.6,1161.0,7.19009]
[1610007782343,4.00959,1161.5,1161.0,3.1805]
[1610007782543,30.0,1161.4,1160.8,52.5856]
[1610007783448,30.0,1161.4,1160.1,2.8942]
[1610007783646,30.0,1161.4,1157.4,11.051]
[1610007783948,30.0,1161.4,1157.4,3.674]
[1610007784149,30.0,1161.4,1157.4,11.051]
[1610007784346,4.00959,1160.5,1160.4,4.00959]
[1610007784547,34.00959,1160.5,1157.4,3.674]
[1610007786349,4.00959,1160.2,1159.7,4.00959]
[1610007786549,34.00959,1160.2,1159.7,4.00959]
[1610007786848,4.00959,1160.2,1159.7,4.00959]
[1610007787048,30.0,1160.7,1159.7,4.00959]
[1610007787250,30.0,1160.7,1159.7,7.05439]
[1610007787550,2.2913,1161.9,1159.7,7.05439]
[1610007787949,30.0,1161.8,1159.7,7.05439]
[1610007788353,4.00959,1160.6,1160.4,4.00959]
[1610007788549,30.0,1160.6,1159.7,3.0448]
[1610007789250,30.0,1161.0,1159.7,3.0448]
[1610007789450,30.0,1161.8,1159.7,3.0448]
[1610007790452,4.00959,1160.6,1159.7,3.0448]
[1610007790655,34.00959,1160.6,1159.7,3.0448]
[1610007792454,4.00959,1160.1,1159.6,4.00959]
[1610007792655,34.00959,1160.1,1159.6,4.00959]
[1610007794155,34.00959,1160.1,1159.1,67.8987]
[1610007794556,4.00959,1159.5,1159.4,4.00959]
[1610007795055,30.0,1160.0,1159.4,4.00959]
[1610007795257,30.0,1160.5,1159.4,6.80749]
[1610007795463,30.0,1160.5,1158.7,50.2119]
[1610007795657,30.0,1161.4,1159.4,2.0785]
[1610007796558,30.0,1161.4,1159.7,4.00959]
[1610007796760,30.0,1161.4,1159.7,6.84749]